bitfinex/quotes_SOLUSD_20220207
["timestamp","ask_amount","ask_price","bid_price","bid_amount"]
[1644249509047,38.31051102,121.52,121.45,42.94530562]
[1644249509249,38.31051102,121.52,121.46,11.88]
[1644249509452,38.31051102,121.52,121.46,24.2299]
[1644249510254,13.51484209,121.56,121.46,24.2299]
[1644249510849,1.16414209,121.56,121.46,24.2299]
[1644249511050,1.16414209,121.56,121.46,24.4799]
[1644249511251,35.87179607,121.56,121.47,38.0187345]
[1644249511451,35.87179607,121.56,121.49,12.3469]
[1644249511651,35.87179607,121.56,121.5,11.88]
[1644249513754,37.03593816,121.56,121.5,11.88]
[1644249513953,35.87179607,121.56,121.5,11.88]
[1644249514154,35.87179607,121.56,121.48,11.88]
[1644249514655,49.38623816,121.56,121.48,11.88]
[1644249514855,25.66680744,121.54,121.48,11.88]
[1644249518080,1.16414209,121.55,121.49,40.55312905]
[1644249518282,1.16414209,121.56,121.49,52.43312905]
[1644249518883,1.16414209,121.56,121.49,11.88]
[1644249519084,1.16414209,121.56,121.49,24.2272]
[1644249519285,1.16414209,121.55,121.49,11.88]
[1644249519691,1.16414209,121.54,121.49,11.88]
[1644249519887,1.16414209,121.53,121.49,11.88]
[1644249520088,1.16414209,121.54,121.49,11.88]
[1644249520589,1.16414209,121.55,121.49,11.88]
[1644249520987,1.16414209,121.54,121.49,11.88]
[1644249521189,37.42287792,121.53,121.49,11.88]
[1644249521688,38.58702001,121.53,121.49,11.88]
[1644249522690,1.16414209,121.53,121.49,11.88]
[1644249523693,39.6338548,121.52,121.49,11.88]
[1644249523893,3.03219997,121.51,121.49,11.88]
[1644249524696,1.16414209,121.53,121.49,12.13]
[1644249524899,1.16414209,121.54,121.5,3.03219997]
[1644249525097,1.16414209,121.55,121.51,11.88]
[1644249525697,43.01263531,121.55,121.51,11.88]
[1644249526598,1.16414209,121.54,121.51,11.88]
[1644249526802,19.69011029,121.53,121.51,11.88]
[1644249527101,1.16414209,121.55,121.52,3.03219997]
[1644249527302,1.16414209,121.55,121.52,14.91219997]
[1644249527702,1.49357281,121.57,121.52,14.91219997]
[1644249528201,47.2585081,121.57,121.52,14.91219997]
[1644249528703,1.16414209,121.56,121.52,50.90442591]
[1644249528903,46.09436601,121.57,121.52,50.90442591]
[1644249528904,47.2585081,121.57,121.52,63.24892591]
[1644249529126,1.49357281,121.57,121.52,27.25669997]
[1644249529802,0.32943072,121.57,121.52,27.25669997]
[1644249530605,0.32943072,121.57,121.54,12.3426]
[1644249530806,0.32943072,121.57,121.55,14.91219997]
[1644249531005,0.32943072,121.57,121.56,3.03219997]
[1644249531205,0.32943072,121.57,121.56,14.91219997]
[1644249533807,16.60460703,121.57,121.56,14.91219997]
[1644249534005,16.60460703,121.57,121.56,11.88]
[1644249535415,16.60460703,121.57,121.53,11.88]
[1644249536210,0.32943072,121.57,121.53,11.88]
[1644249537213,0.32943072,121.57,121.53,73.05303]
[1644249538814,0.32943072,121.57,121.53,73.30303]
[1644249539015,0.32943072,121.57,121.53,73.05303]
[1644249539217,0.32943072,121.57,121.53,75.21247851]
[1644249539417,0.32943072,121.57,121.53,26.13364851]
[1644249539615,0.32943072,121.57,121.53,24.2242]
[1644249544347,0.32943072,121.57,121.55,12.3399]
[1644249544540,0.32943072,121.57,121.56,17.94439994]
[1644249544942,0.32943072,121.57,121.56,65.80368196]
[1644249545541,0.32943072,121.57,121.56,78.14358196]
[1644249549345,0.32943072,121.57,121.56,226.65358196]
[1644249549748,0.32943072,121.57,121.56,228.80049544]
[1644249550951,38.79490234,121.63,121.56,228.80049544]
[1644249551152,46.36088696,121.65,121.56,228.80049544]
[1644249551747,46.36088696,121.65,121.56,80.29049544]
[1644249551947,46.36088696,121.65,121.59,12.3364]
[1644249552148,54.3146896,121.68,121.6,49.17392612]
[1644249552348,50.2036896,121.68,121.6,49.17392612]
[1644249552950,47.86131427,121.68,121.6,49.17392612]
[1644249553249,50.2036896,121.68,121.6,49.17392612]
[1644249553949,50.2036896,121.68,121.61,12.3359]
[1644249554149,50.2036896,121.68,121.62,11.88]
[1644249554750,47.86131427,121.68,121.62,11.88]
[1644249554949,60.19761427,121.68,121.62,11.88]
[1644249555650,62.5399896,121.68,121.62,11.88]
[1644249555849,60.19761427,121.68,121.62,11.88]
[1644249556053,64.30761427,121.68,121.62,11.88]
[1644249556656,66.6499896,121.68,121.62,11.88]
[1644249556849,50.2036896,121.68,121.62,24.215]
[1644249557049,47.86131427,121.68,121.62,79.09504281]
[1644249557251,2.34237533,121.69,121.62,79.34504281]
[1644249557455,2.34237533,121.7,121.62,227.85504281]
[1644249557654,2.34237533,121.72,121.62,233.85504281]
[1644249557855,2.3380757,121.72,121.63,148.51]
[1644249558053,4.68045103,121.73,121.65,12.3314]
[1644249558353,41.34455604,121.71,121.66,11.88]
[1644249558555,2.34237533,121.72,121.66,53.12791509]
[1644249558753,2.34237533,121.73,121.66,21.971]
[1644249559154,4.68034488,121.73,121.66,21.971]
[1644249559353,2.34237533,121.73,121.66,21.971]
[1644249559655,4.108,121.73,121.66,21.971]
[1644249559855,35.03478288,121.72,121.66,11.88]
[1644249560959,47.36778288,121.72,121.66,11.88]
[1644249562259,47.36778288,121.72,121.64,11.88]
[1644249562458,6.82453753,121.71,121.62,11.88]
[1644249562658,12.3365,121.69,121.62,11.88]
[1644249562857,35.03478288,121.68,121.62,11.88]
[1644249563457,35.03478288,121.68,121.62,24.2154]
[1644249564859,47.37108288,121.68,121.62,24.2154]
[1644249565559,47.37108288,121.68,121.62,11.88]
[1644249565964,47.37108288,121.68,121.62,56.59564858]
[1644249566165,47.37108288,121.68,121.62,11.88]
[1644249566365,18.78747533,121.7,121.62,11.88]
[1644249566563,49.86987533,121.72,121.62,24.2154]
[1644249566963,47.5275,121.72,121.62,24.2154]
[1644249567163,49.86987533,121.72,121.62,24.2154]
[1644249567363,46.68665152,121.71,121.63,34.76817049]
[1644249567564,46.68665152,121.71,121.64,24.2128]
[1644249568768,59.02025152,121.71,121.64,24.2128]
[1644249569267,59.02025152,121.71,121.64,11.88]
[1644249569870,46.68665152,121.71,121.64,11.88]
[1644249571801,46.68665152,121.71,121.64,58.84366785]
[1644249572203,46.68665152,121.71,121.64,24.2126]
[1644249572411,46.18665152,121.71,121.64,24.2126]
[1644249573604,48.33348009,121.71,121.64,11.88]
[1644249574211,60.66738009,121.71,121.64,11.88]
[1644249574409,46.18665152,121.71,121.64,11.88]
[1644249574811,46.18665152,121.71,121.64,24.2127]
[1644249575606,2.34237533,121.72,121.65,40.29076715]
[1644249575806,2.34237533,121.72,121.66,11.88]
[1644249576205,2.34237533,121.74,121.66,11.88]
[1644249576406,2.98708913,121.75,121.66,11.88]
[1644249576606,48.22654708,121.74,121.67,47.33055386]
[1644249576809,48.22654708,121.74,121.68,11.88]
[1644249577014,48.22654708,121.74,121.68,24.2083]
[1644249577208,48.22654708,121.74,121.68,11.88]
[1644249577609,50.56892241,121.74,121.66,11.88]
[1644249578115,2.3406748,121.73,121.66,11.88]
[1644249578309,12.81205643,121.72,121.66,11.88]
[1644249580910,12.81205643,121.72,121.66,24.2108]
[1644249581516,12.81205643,121.72,121.66,11.88]
[1644249582214,0.6447138,121.75,121.66,11.88]
[1644249582215,2.34237533,121.73,121.66,11.88]
[1644249582411,6.45037533,121.74,121.66,11.88]
[1644249582612,2.34237533,121.74,121.66,11.88]
[1644249582811,2.98708913,121.75,121.66,11.88]
[1644249583010,4.68436653,121.74,121.66,11.88]
[1644249583211,48.17474984,121.73,121.66,24.2102]
[1644249583810,48.17474984,121.73,121.66,11.88]
[1644249584011,50.51712517,121.73,121.66,11.88]
[1644249586114,115.26735374,121.73,121.64,11.88]
[1644249586315,59.06488441,121.72,121.58,12.217]
[1644249586514,105.81308441,121.72,121.59,11.88]
[1644249586716,50.27,121.7,121.59,11.88]
[1644249586919,41.1374,121.68,121.57,11.88]
[1644249587117,67.24385367,121.67,121.56,11.88]
[1644249587317,92.13328224,121.67,121.56,57.76572053]
[1644249587515,39.71645367,121.67,121.56,57.76572053]
[1644249587717,47.10498905,121.64,121.56,57.76572053]
[1644249587915,47.10498905,121.64,121.56,11.88]
[1644249588318,97.37498905,121.64,121.56,11.88]
[1644249588517,4.111,121.63,121.54,11.88]
[1644249588720,12.3447,121.62,121.54,11.88]
[1644249589142,13.93361446,121.61,121.54,56.11653151]
[1644249589516,13.93361446,121.61,121.54,11.88]
[1644249590217,11.8447,121.62,121.54,11.88]
[1644249591317,49.29537512,121.61,121.54,11.88]
[1644249591717,36.94967512,121.61,121.54,11.88]
[1644249591917,36.94967512,121.61,121.54,17.93001]
[1644249592718,36.94967512,121.61,121.54,17.43001]
[1644249593619,48.96767512,121.61,121.54,6.05001]
[1644249593819,51.11450369,121.61,121.54,6.05001]
[1644249594118,16.4593,121.6,121.52,11.88]
[1644249594319,24.08892839,121.59,121.53,6.05051]
[1644249594922,36.43702839,121.59,121.5,11.88]
[1644249595221,49.08602839,121.59,121.5,17.932]
[1644249596221,36.94967512,121.57,121.5,17.932]
[1644249596422,36.94967512,121.57,121.47,59.336]
[1644249596423,108.0,121.56,121.47,5.5832]
[1644249596643,50.27,121.55,121.43,11.88]
[1644249596820,4.115,121.54,121.42,0.024]
[1644249597022,4.115,121.54,121.41,11.88]
[1644249597223,26.23575696,121.53,121.42,35.78545805]
[1644249597426,34.37345501,121.51,121.42,0.024]
[1644249597622,34.37345501,121.51,121.43,11.88]
[1644249598423,34.37345501,121.51,121.44,49.06452555]
[1644249598623,47.4277,121.55,121.45,11.88]
[1644249598824,47.4277,121.55,121.45,13.76813871]
[1644249599025,47.4277,121.55,121.46,1.88813871]
[1644249599226,47.4277,121.55,121.46,13.76813871]
[1644249599430,16.4692,121.54,121.46,11.88]
[1644249599628,46.82479714,121.53,121.46,11.88]
[1644249600526,65.36024714,121.53,121.46,11.88]
[1644249601731,4.115,121.52,121.46,11.88]
[1644249602531,10.29545,121.52,121.46,11.88]
[1644249602734,14.21380637,121.51,121.46,11.88]
[1644249603831,6.18045,121.51,121.46,11.88]
[1644249605055,6.18045,121.51,121.46,50.36304777]
[1644249606156,29.89368357,121.51,121.46,50.36304777]
[1644249606357,29.89368357,121.51,121.46,11.88]
[1644249608161,6.18045,121.51,121.46,11.88]
[1644249609364,6.18045,121.51,121.46,47.73653082]
[1644249609965,28.44811036,121.51,121.46,11.88]
[1644249611068,6.18045,121.51,121.46,11.88]
[1644249613672,47.74356513,121.51,121.46,11.88]
[1644249614273,6.18045,121.51,121.46,51.58119288]
[1644249614971,6.18045,121.51,121.46,11.88]
[1644249615975,34.8794,121.5,121.46,11.88]
[1644249616172,6.18045,121.49,121.46,11.88]
[1644249616773,6.18045,121.49,121.47,3.03219997]
[1644249616976,6.18045,121.49,121.48,11.88]
[1644249617976,6.18045,121.49,121.48,17.94439994]
[1644249618475,6.18045,121.49,121.48,11.88]
[1644249618677,5.34045,121.49,121.48,11.88]
[1644249620175,5.34045,121.49,121.48,14.91219997]
[1644249620577,5.34045,121.49,121.48,11.88]
[1644249620779,5.34045,121.49,121.48,14.91219997]
[1644249620976,5.34045,121.49,121.48,11.88]
[1644249621980,77.88,121.48,121.45,11.88]
[1644249622678,11.88,121.48,121.45,11.88]
[1644249622904,5.34045,121.49,121.45,11.88]
[1644249623478,5.34045,121.49,121.45,13.78147541]
[1644249623879,5.34045,121.49,121.46,41.30325088]
[1644249624083,5.34045,121.49,121.47,17.94439994]
[1644249624482,115.776621,121.57,121.47,17.94439994]
[1644249624685,6.18045,121.56,121.47,17.94439994]
[1644249624884,56.45045,121.56,121.47,19.8533769]
[1644249625081,56.45045,121.56,121.47,17.94439994]
[1644249625483,37.99235581,121.55,121.47,56.31470329]
[1644249625684,18.53465,121.54,121.47,17.94439994]
[1644249625887,6.18045,121.54,121.47,17.94439994]
[1644249626687,48.55255809,121.53,121.47,17.94439994]
[1644249626884,6.18045,121.52,121.47,17.94439994]
[1644249627886,12.48604542,121.51,121.47,17.94439994]
[1644249628291,12.48604542,121.51,121.47,14.91219997]
[1644249628493,18.66649542,121.51,121.47,11.88]
[1644249629093,6.18045,121.51,121.47,11.88]
[1644249630292,48.306215,121.51,121.47,11.88]
[1644249631412,98.576215,121.51,121.47,11.88]
[1644249631609,98.576215,121.51,121.45,11.88]
[1644249631812,98.576215,121.51,121.43,11.88]
[1644249632013,102.692215,121.51,121.43,11.904]
[1644249632310,104.83904357,121.51,121.43,11.904]
[1644249632915,104.83904357,121.51,121.44,36.54196369]
[1644249632916,66.92584357,121.51,121.44,36.54196369]
[1644249633116,60.663015,121.51,121.43,11.904]
[1644249634212,18.91283851,121.49,121.43,48.00686607]
[1644249634412,50.14788851,121.49,121.43,11.88]
[1644249635116,18.53905,121.49,121.43,11.88]
[1644249635319,6.18045,121.49,121.43,11.88]
[1644249636216,46.77051241,121.48,121.43,11.88]
[1644249637116,52.95096241,121.48,121.43,11.88]
[1644249637916,6.18045,121.48,121.43,11.88]
[1644249640220,21.96282241,121.47,121.43,11.88]
[1644249640420,6.18045,121.46,121.43,11.88]
[1644249641521,6.18045,121.46,121.44,6.06439994]
[1644249641721,6.18045,121.46,121.45,11.88]
[1644249642523,5.68045,121.46,121.45,11.88]
[1644249642722,47.0265956,121.5,121.45,11.88]
[1644249642923,53.2070456,121.5,121.45,11.88]
[1644249643324,115.8344456,121.5,121.42,0.024]
[1644249643522,115.8344456,121.5,121.43,0.024]
[1644249643724,115.8344456,121.5,121.4,0.024]
[1644249643928,115.8344456,121.5,121.41,11.88]
[1644249644125,115.8344456,121.5,121.42,0.024]
[1644249644326,115.8344456,121.5,121.42,11.904]
[1644249644526,115.8344456,121.5,121.42,11.88]
[1644249644724,26.37150791,121.48,121.42,11.904]
[1644249644925,26.37150791,121.48,121.42,11.88]
[1644249646226,4.116,121.49,121.42,11.88]
[1644249646429,6.18045,121.5,121.42,11.904]
[1644249646726,6.18045,121.5,121.42,13.80715039]
[1644249646925,25.381821,121.53,121.43,148.51]
[1644249647126,42.70196701,121.52,121.44,54.27040058]
[1644249648127,48.88241701,121.52,121.44,54.27040058]
[1644249648730,48.88241701,121.52,121.44,54.52040058]
[1644249649130,6.18045,121.52,121.44,54.52040058]
[1644249649331,6.18045,121.52,121.44,56.42355097]
[1644249650034,6.18045,121.52,121.44,68.77575097]
[1644249651535,23.9323039,121.51,121.44,68.77575097]
[1644249651934,6.18045,121.52,121.44,68.77575097]
[1644249652935,47.84987445,121.52,121.44,68.77575097]
[1644249653737,6.18045,121.52,121.44,68.77575097]
[1644249654737,6.18045,121.52,121.44,74.77575097]
[1644249654938,6.18045,121.52,121.44,223.28575097]
[1644249655240,6.18045,121.52,121.44,74.77575097]
[1644249655539,6.18045,121.52,121.47,12.3483]
[1644249655740,6.18045,121.52,121.48,160.39]
[1644249655941,2.326921,121.58,121.48,162.29315039]
[1644249656141,2.326921,121.59,121.49,150.41315039]
[1644249656341,39.2160167,121.6,121.52,37.70568808]
[1644249656539,2.326921,121.61,121.54,45.56225199]
[1644249656742,6.18045,121.61,121.55,11.88]
[1644249656942,2.326921,121.63,121.55,11.88]
[1644249657144,2.326921,121.64,121.55,181.56115039]
[1644249657345,15.6255722,121.67,121.55,181.56115039]
[1644249657346,10.3501117,121.67,121.55,33.05115039]
[1644249657543,2.326921,121.68,121.58,148.51]
[1644249657741,2.326921,121.69,121.61,35.6252207]
[1644249657951,4.66728976,121.69,121.62,11.88]
[1644249658846,38.67142431,121.68,121.62,11.88]
[1644249659046,4.11,121.67,121.62,11.88]
[1644249659249,2.326921,121.69,121.62,13.78315039]
[1644249659447,6.436921,121.72,121.62,11.88]
[1644249660046,12.3359,121.71,121.63,43.18378123]
[1644249660247,4.109,121.7,121.64,11.88]
[1644249661048,10.28945,121.7,121.65,43.77417671]
[1644249661349,6.18045,121.7,121.65,55.65417671]
[1644249661769,46.19985129,121.72,121.65,55.65417671]
[1644249662354,6.18045,121.71,121.65,55.65417671]
[1644249663655,6.18045,121.71,121.65,11.88]
[1644249663854,12.3344,121.72,121.65,11.88]
[1644249664667,41.2429853,121.71,121.65,11.88]
[1644249665670,53.5784853,121.71,121.65,11.88]
[1644249666068,4.109,121.73,121.65,11.88]
[1644249666470,4.108,121.74,121.65,11.88]
[1644249666873,12.3339,121.73,121.65,11.88]
[1644249667070,4.108,121.74,121.66,37.33758092]
[1644249667272,47.1484138,121.75,121.68,46.10003765]
[1644249667273,0.6447138,121.75,121.68,46.10003765]
[1644249667472,0.6447138,121.75,121.69,11.88]
[1644249668073,0.6447138,121.75,121.7,47.38758104]
[1644249668272,0.6447138,121.75,121.71,11.88]
[1644249669074,0.6447138,121.75,121.72,45.55452616]
[1644249669273,0.6447138,121.75,121.74,44.63446542]
[1644249669476,0.6447138,121.75,121.74,56.51446542]
[1644249671077,0.6447138,121.75,121.74,11.88]
[1644249672882,12.3274,121.8,121.74,11.88]
[1644249673082,1.63240863,121.82,121.76,148.51]
[1644249673380,0.47679516,121.82,121.77,11.88]
[1644249673577,0.47679516,121.82,121.78,41.01492329]
[1644249673779,0.47679516,121.82,121.79,11.88]
[1644249673980,40.0,121.81,121.79,3.03219997]
[1644249674379,0.47679516,121.82,121.79,3.03219997]
[1644249675078,0.47679516,121.82,121.8,3.03219997]
[1644249675281,0.47679516,121.82,121.79,3.03219997]
[1644249675485,4.08079516,121.83,121.79,3.03219997]
[1644249675687,0.59958112,121.84,121.79,9.03219997]
[1644249675883,0.59958112,121.84,121.8,34.5127641]
[1644249676087,4.104,121.88,121.81,11.88]
[1644249676881,49.42458481,121.88,121.81,11.88]
[1644249677094,46.42458481,121.88,121.82,36.18011701]
[1644249677381,4.103,121.88,121.82,48.06011701]
[1644249677581,4.103,121.88,121.82,36.18011701]
[1644249677981,12.36379984,121.89,121.82,36.18011701]
[1644249678581,28.61633142,121.89,121.82,36.18011701]
[1644249678982,28.61633142,121.89,121.8,11.88]
[1644249679283,37.43011347,121.92,121.82,84.0]
[1644249679284,25.34231347,121.92,121.82,84.0]
[1644249679486,0.17959936,121.92,121.82,9.249]
[1644249679784,24.8124,121.93,121.87,148.51]
[1644249679785,0.27933854,121.93,121.87,148.51]
[1644249679982,0.27933854,121.93,121.88,11.88]
[1644249680183,0.27933854,121.93,121.89,202.33089983]
[1644249680383,9.75886547,121.94,121.89,202.33089983]
[1644249680582,9.75886547,121.94,121.9,4.101]
[1644249680784,9.75886547,121.94,121.91,11.88]
[1644249680983,3.03219997,121.93,121.87,4.1]
[1644249681386,3.03219997,121.93,121.8,4.101]
[1644249681684,5.17902854,121.93,121.81,11.88]
[1644249681888,39.14839387,121.92,121.82,4.102]
[1644249682083,43.25039387,121.92,121.83,11.88]
[1644249682485,9.75886547,121.94,121.84,4.102]
[1644249682683,9.75886547,121.94,121.85,11.88]
[1644249683488,42.40631022,121.93,121.86,43.22119826]
[1644249684088,42.40631022,121.93,121.85,11.88]
[1644249684290,58.82311022,121.93,121.85,11.88]
[1644249685289,58.82311022,121.93,121.82,11.88]
[1644249687091,54.22111022,121.93,121.82,11.88]
[1644249687289,54.22111022,121.93,121.82,51.24257893]
[1644249688091,54.00259738,121.93,121.82,51.24257893]
[1644249688289,4.102,121.92,121.82,51.24257893]
[1644249688491,41.44099266,121.91,121.82,51.24257893]
[1644249688693,41.44099266,121.91,121.82,11.88]
[1644249688991,41.44099266,121.91,121.8,11.88]
[1644249689193,4.103,121.9,121.8,11.88]
[1644249689391,4.103,121.9,121.78,4.102]
[1644249689692,35.18522111,121.89,121.79,39.37068262]
[1644249690792,85.45522111,121.89,121.79,39.37068262]
[1644249690991,62.589,121.88,121.79,39.37068262]
[1644249691193,35.76597659,121.87,121.77,11.88]
[1644249691592,39.86997659,121.87,121.77,11.88]
[1644249691891,92.28680516,121.87,121.75,48.7535]
[1644249692093,50.27,121.85,121.75,54.79308]
[1644249692392,39.44809683,121.84,121.75,6.03958]
[1644249692595,4.105,121.83,121.75,47.75073483]
[1644249692792,43.55309683,121.84,121.75,47.75073483]
[1644249692994,4.105,121.84,121.75,47.75073483]
[1644249693194,12.3217,121.85,121.75,47.75073483]
[1644249693393,62.5917,121.85,121.75,47.75073483]
[1644249693994,36.73598164,121.84,121.75,47.75073483]
[1644249694193,40.84098164,121.84,121.75,47.75073483]
[1644249694394,53.16408164,121.84,121.75,47.75073483]
[1644249695295,49.05908164,121.84,121.75,47.75073483]
[1644249695495,99.32908164,121.84,121.75,6.03958]
[1644249696098,101.47591021,121.84,121.75,6.03958]
[1644249696297,113.35591021,121.84,121.75,6.03958]
[1644249696697,4.105,121.83,121.75,6.03958]
[1644249696896,50.27,121.8,121.75,6.03958]
[1644249697098,58.468,121.8,121.75,6.03958]
[1644249697698,35.96529542,121.79,121.75,6.03958]
[1644249700102,35.96529542,121.79,121.7,11.88]
[1644249700307,50.27,121.78,121.7,6.04206]
[1644249700498,54.376,121.78,121.65,11.88]
[1644249700699,106.14672857,121.78,121.65,11.88]
[1644249700999,43.90035293,121.77,121.63,36.42845352]
[1644249701197,36.4983639,121.75,121.63,36.42845352]
[1644249701397,98.6483639,121.75,121.63,36.42845352]
[1644249701600,36.74700863,121.73,121.63,36.42845352]
[1644249701998,36.74700863,121.73,121.6,15.988]
[1644249702498,36.74700863,121.73,121.6,30.21254748]
[1644249702697,36.74700863,121.73,121.6,28.3227]
[1644249702900,36.74700863,121.73,121.61,41.75835025]
[1644249703099,36.74700863,121.73,121.63,36.36527076]
[1644249703898,49.08070863,121.73,121.63,36.36527076]
[1644249704501,12.3337,121.73,121.63,36.61527076]
[1644249704702,4.109,121.75,121.63,48.49527076]
[1644249704900,24.1211,121.76,121.63,48.49527076]
[1644249705301,24.1211,121.76,121.63,60.82707076]
[1644249705503,44.61970877,121.75,121.63,60.82707076]
[1644249705700,44.61970877,121.75,121.65,40.13794697]
[1644249705900,48.72770877,121.75,121.65,40.13794697]
[1644249706199,61.05970877,121.75,121.65,40.13794697]
[1644249707200,61.05970877,121.75,121.65,37.63794697]
[1644249708701,61.05970877,121.75,121.65,43.63794697]
[1644249709401,56.89332443,121.75,121.65,43.63794697]
[1644249709602,56.89332443,121.75,121.65,43.88794697]
[1644249709803,12.332,121.75,121.65,43.88794697]
[1644249710006,12.332,121.75,121.65,55.76794697]
[1644249710209,4.108,121.77,121.65,57.65779445]
[1644249710210,12.3293,121.77,121.65,57.65779445]
[1644249710506,53.87211347,121.81,121.65,206.16779445]
[1644249710703,53.87211347,121.81,121.67,12.3282]
[1644249710906,38.9038765,121.8,121.68,49.49071834]
[1644249711105,89.1738765,121.8,121.68,49.49071834]
[1644249711303,38.9038765,121.8,121.68,49.49071834]
[1644249711506,37.03830056,121.77,121.68,73.28661834]
[1644249711703,37.03830056,121.77,121.68,73.03661834]
[1644249713006,37.03830056,121.77,121.68,85.36381834]
[1644249713204,12.3283,121.78,121.68,85.61381834]
[1644249713407,4.107,121.8,121.68,87.50366582]
[1644249713605,5.26261347,121.84,121.7,148.51]
[1644249713804,1.15561347,121.85,121.71,164.496]
[1644249714004,453.98585183,121.88,121.71,175.98684748]
[1644249714005,1.15561347,121.86,121.71,175.98684748]
[1644249714211,1.15561347,121.86,121.72,47.31146779]
[1644249714407,1.15561347,121.86,121.74,43.15682976]
[1644249714605,1.15561347,121.87,121.77,12.318]
[1644249714806,1.15561347,121.87,121.78,11.88]
[1644249715207,1.15561347,121.87,121.78,14.01984748]
[1644249715514,0.63632384,121.87,121.78,11.88]
[1644249715709,4.104,121.9,121.79,43.68220468]
[1644249715913,12.3169,121.9,121.8,11.88]
[1644249716108,56.699921,121.93,121.8,19.76984748]
[1644249716308,56.45045,121.93,121.8,11.88]
[1644249716508,58.777371,121.93,121.8,17.88]
[1644249716708,44.94340687,121.92,121.8,24.195]
[1644249716909,44.60428823,121.9,121.8,11.88]
[1644249717107,66.6919,121.89,121.79,41.7923572]
[1644249717314,29.5949,121.89,121.79,41.7923572]
[1644249717509,50.27,121.91,121.8,11.88]
[1644249717910,4.103,121.9,121.8,11.88]
[1644249718309,88.71560716,121.89,121.81,38.86032211]
[1644249718610,88.71560716,121.89,121.77,12.3175]
[1644249718611,2.14682857,121.88,121.78,11.88]
[1644249718811,2.14682857,121.88,121.77,11.88]
[1644249719008,4.104,121.87,121.75,11.88]
[1644249719409,50.27,121.86,121.75,11.88]
[1644249719609,50.27,121.83,121.75,46.6181205]
[1644249719811,75.0,121.81,121.71,4.104]
[1644249720109,75.0,121.81,121.7,148.51]
[1644249720110,50.27,121.79,121.57,74.62777214]
[1644249720311,160.39,121.78,121.58,10.15702]
[1644249720510,50.27,121.75,121.58,6.04802]
[1644249720714,50.27,121.71,121.58,6.04802]
[1644249720909,50.27,121.71,121.59,37.54281359]
[1644249720910,36.51427528,121.7,121.59,37.54281359]
[1644249721111,11.88,121.71,121.59,43.59033359]
[1644249721411,59.2674,121.75,121.6,17.87984596]
[1644249721412,4.11,121.75,121.6,17.87984596]
[1644249721610,51.6963,121.79,121.6,48.21284596]
[1644249721812,12.3327,121.75,121.61,24.44234596]
[1644249722011,47.29071766,121.74,121.62,52.22513751]
[1644249722212,11.88,121.73,121.62,48.11613751]
[1644249722415,88.42497744,121.72,121.62,48.11613751]
[1644249722815,88.42497744,121.72,121.63,4.109]
[1644249723018,88.42497744,121.72,121.64,39.68450963]
[1644249724013,12.3381,121.7,121.64,39.68450963]
[1644249724213,57.41950129,121.7,121.64,39.68450963]
[1644249724414,50.27,121.72,121.64,39.68450963]
[1644249724615,50.27,121.72,121.6,46.4154]
[1644249724814,50.27,121.72,121.6,52.46243]
[1644249725214,62.6046,121.72,121.6,52.46243]
[1644249725416,66.7136,121.72,121.6,52.46243]
[1644249725616,39.32602457,121.71,121.61,45.09285438]
[1644249726016,38.82602457,121.71,121.61,45.09285438]
[1644249726415,38.82602457,121.71,121.61,51.13938438]
[1644249726616,38.82602457,121.71,121.61,53.02436556]
[1644249726819,4.109,121.74,121.61,53.02436556]
[1644249727017,12.3329,121.74,121.62,4.109]
[1644249727217,12.3329,121.74,121.62,14.239]
[1644249727418,4.109,121.75,121.63,1.88498118]
[1644249727621,33.4747,121.79,121.64,4.108]
[1644249727819,96.86450445,121.78,121.65,48.73541049]
[1644249728019,96.86450445,121.78,121.65,59.02041049]
[1644249728219,96.86450445,121.78,121.65,61.15539167]
[1644249728422,96.86450445,121.78,121.65,59.02041049]
[1644249729023,62.6006,121.76,121.65,59.02041049]